Cogmind - Beta 17 @@@ ROGUE MODE // 2026.07.29 @ 22:34:44 Player: time Result: Destroyed by ZX-SV6(R) with Subdweller Shrapnel Launcher Performance ------------- Evolutions (0) 0 Regions Visited (2) 400 Robots Destroyed (29) 145 Value Destroyed (624) 624 Prototype IDs (1) 20 Alien Tech Used (0) 0 Bonus (5200) 5200 TOTAL SCORE: 6389 Bonus ------- Prayed to X0-1V1 5000 Major X0-1V1 Interference 200 Cogmind --------- Core Integrity 0/250 Matter 275/300 Energy 100/100 System Corruption 1% Temperature Cool (0) Movement Treading (160) Location -10/Subcaves Parts ------- > --- POWER (1) -------- (None) > --- PROPULSION (2) --- Light Treads Light Treads > --- UTILITY (2) ------ Medium Storage Unit X0-1V1's Piety Tracker > --- WEAPON (2) ------- Subdweller Laser Grenade Launcher > --- INVENTORY (10) --- Light Ion Engine Light Ion Engine Aluminum Leg Seismic Detector Targeting Computer ECM Suite Autogun Light Cannon Grenade Launcher Peak State ------------ > --- POWER ------------ Light Nuclear Core > --- PROPULSION ------- Aluminum Leg Aluminum Leg > --- UTILITY ---------- Medium Storage Unit X0-1V1's Piety Tracker > --- WEAPON ----------- Light Assault Rifle Autogun > --- INVENTORY -------- Light Ion Engine Light Ion Engine Light Treads Light Treads Seismic Detector Targeting Computer ECM Suite Light Cannon Grenade Launcher Grenade Launcher [Rating: 23] Favorites ----------- Power Light Nuclear Core Engine Light Ion Engine Power Core Light Nuclear Core Propulsion Aluminum Leg Treads Light Treads Leg Aluminum Leg Utility Seismic Detector Device Seismic Detector Storage Medium Storage Unit Weapon Light Assault Rifle Energy Gun Medium Laser Ballistic Gun Light Assault Rifle Ballistic Cannon Light Cannon Launcher Grenade Launcher Build | -11 -10 -10 ------- Run | Yrd Mat Sub Slots Evolved . | . . . Power . | . . . Propulsion . | . . . Utility . | . . . Weapon . | . . . Parts Attached 23 | 7 14 2 Power 3 | 1 2 . Engine 2 | 1 1 . Core 1 | . 1 . Reactor . | . . . Propulsion 6 | 2 4 . Treads 2 | . 2 . Leg 4 | 2 2 . Wheel . | . . . Hover . | . . . Flight . | . . . Utility 6 | 2 4 . Device 3 | 1 2 . Storage 3 | 1 2 . Processor . | . . . Hackware . | . . . Protection . | . . . Artifact . | . . . Weapon 8 | 2 4 2 Energy Gun 3 | 2 . 1 Energy Cannon . | . . . Ballistic Gun 2 | . 2 . Ballistic Cannon 1 | . 1 . Launcher 2 | . 1 1 Special Weapon . | . . . Impact Weapon . | . . . Slashing Weapon . | . . . Piercing Weapon . | . . . Special Melee Weapon . | . . . Unidentified Prototypes 1 | . 1 . Parts Lost 5 | . 3 2 Power 1 | . . 1 Propulsion 3 | . 2 1 Utility 1 | . 1 . Weapon . | . . . Highest Loss Streak 3 | . 3 1 To Critical Strikes . | . . . Average Backups 7 | 2 8 9 Power 1 | . 1 1 Propulsion 2 | 1 3 1 Utility 1 | . 1 3 Weapon 2 | . 2 3 Tool/Special . | . . . Unused Backups 7 | . 3 4 Power 2 | . . 2 Propulsion . | . . . Utility 3 | . 1 2 Weapon 2 | . 2 . Tool/Special . | . . . Average Slot Usage (%) 99 | . 99 100 Engine 4 | . 5 . Core 9 | . 8 14 Treads 2 | . . 11 Leg 25 | . 27 16 Device 14 | . 14 14 Storage 14 | . 14 14 Energy Gun 6 | . 7 2 Ballistic Gun 18 | . 17 25 Ballistic Cannon 2 | . 2 . Peak Build Rating 23 | 7 22 23 Average Rating 11 | 5 8 22 On Entrance 9 | . 7 22 Avg Prop Armor Cover (%) . | . . . Naked Turns . | . . . Heaviest Build 23 | 15 20 23 Greatest Support 40 | 20 40 40 Greatest Overweight (x) 4 | 4 3 . Average Overweight (x) . | . . . Largest Inventory Capacity 25 | 8 25 10 Average Capacity 9 | 7 9 10 Most Carried 10 | 4 10 10 Average Carried 7 | 3 8 9 Final Capacity 10 | 8 10 10 Final Carried 9 | 4 9 9 Class Distribution -------------------- 55% | Scavenger-Mutant 44% | Mutant Dominant Class ---------------- Scavenger-Mutant | -10/Materials Scavenger-Mutant | -10/Subcaves Resources | -11 -10 -10 ----------- Run | Yrd Mat Sub Matter Collected 732 | 267 329 136 Remotely . | . . . Salvage Created 831 | 110 551 170 Parts 58 | 6 40 12 Haulers Intercepted 1 | . 1 . Recyclers Shooed 4 | 1 3 . Parts Field Recycled . | . . . Retrieved Matter . | . . . Parts Self-Destructed 6 | . . 6 Prevented . | . . . Parts Restored . | . . . Kills | -11 -10 -10 ------- Run | Yrd Mat Sub Combat Hostiles Destroyed 21 | . 15 6 Guns 15 | . 12 3 Cannons 1 | . 1 . AOE 5 | . 2 3 Classes Destroyed 8 | 2 5 1 Tunneler 1 | 1 . . Hauler 1 | . 1 . Recycler 2 | 1 1 . Operator 2 | . 2 . Watcher 2 | . 2 . Swarmer 9 | . 6 3 Grunt 9 | . 9 . Subdweller 3 | . . 3 Best Kill Streak 5 | 2 5 3 Combat Bots Only 3 | . 3 3 Max Kills in Single Turn 2 | 1 2 2 Gunslinging 1 | . 1 . Exploded 2 | . 2 2 Melee . | . . . Uniques/NPCs Destroyed . | . . . Combat | -11 -10 -10 -------- Run | Yrd Mat Sub Hostile Shots Fired 113 | . 76 37 Missed 39 | . 22 17 Hits 74 | . 54 20 Projectile 74 | . 54 20 AOE 2 | . . 2 Critical Strikes 3 | . . 3 Damage Taken 1156 | . 558 598 Core 313 | . 68 245 Absorbed by Shields . | . . . Core Remaining (%) 100 | 100 . . Volleys Fired 82 | 5 61 16 Largest 2 | 2 2 2 Hottest 90 | 90 90 90 Shots Fired 164 | 10 121 33 Gun 145 | 10 104 31 Cannon 13 | . 13 . Launcher 6 | . 4 2 Special . | . . . Kinetic 93 | . 64 29 Thermal 37 | 5 30 2 Explosive 6 | . 4 2 Electromagnetic 28 | 5 23 . Robot Hit Streak 35 | 1 13 35 Robot Miss Streak 4 | 2 4 . Penetration Max . | . . . Secondary Targets 3 | . 2 1 Max Gunslinging Chain 1 | . 1 1 Shots Hit Robots 100 | 3 68 29 Core Hits 42 | 2 31 9 Critical Kills 1 | . 1 . Critical Parts Destroyed . | . . . Critical Strikes 4 | . 4 . Burn 3 | . 3 . Destroy 1 | . 1 . Melee Attacks . | . . . Impact . | . . . Slashing . | . . . Piercing . | . . . Sneak Attacks . | . . . Combat Hostiles . | . . . Follow-up Attacks . | . . . Damage Inflicted 1632 | 42 1090 500 Guns 1000 | 42 644 314 Cannons 158 | . 158 . Explosions 470 | . 284 186 Melee . | . . . Ramming 4 | . 4 . Kinetic 738 | . 424 314 Thermal 287 | . 287 . Explosive 391 | . 205 186 Electromagnetic 212 | 42 170 . Impact . | . . . Slashing . | . . . Piercing . | . . . Highest Corruption 1 | . 1 1 Average Corruption 1 | . 1 1 Corruption Purged . | . . . Corruption Blocked . | . . . Effects 7 | . 3 4 Message Errors 2 | . . 2 Matter Fused 1 | . 1 . Heat Flow Errors 2 | . 1 1 Data Loss (minor) 2 | . 1 1 Overload Shots . | . . . Overflow Damage 36 | . 11 25 Projectiles . | . . . Explosions 36 | . 11 25 Melee . | . . . Knockbacks 2 | . 2 . Impact . | . . . Kinetic 2 | . 2 . Secondary . | . . . Self-Inflicted Damage 42 | . 14 28 Shots 2 | . 1 1 Rammed . | . . . Targets Rammed 2 | . 2 . Kicked 2 | . 2 . Crushed . | . . . Highest Temperature 246 | 90 246 231 Average Temperature 60 | 41 60 111 Received Heat Transfer 563 | . 201 362 Siege Activations . | . . . Martial Activations . | . . . Shielding Activations . | . . . Robots Disrupted . | . . . Combat Hostiles . | . . . Robots Corrupted . | . . . Combat Hostiles . | . . . Parts Fried . | . . . Impact Corruptions . | . . . Robots Melted . | . . . Combat Hostiles . | . . . Parts Melted 4 | . 4 . Heat Transferred 1001 | . 1001 . Parts Sabotaged . | . . . Parts Stolen . | . . . Parts Stripped . | . . . Power Chain Reactions 2 | . 2 . Alert | -11 -10 -10 ------- Run | Yrd Mat Sub Maximum Alert Level . | . . . Low Security (%) 100 | 100 100 . Level 1 . | . . . Level 2 . | . . . Level 3 . | . . . Level 4 . | . . . Level 5 . | . . . High Security . | . . . Max Security . | . . . Peak Influence 86 | 5 86 . Initial . | . . . Average 24 | . 26 . Influence Increases 585 | 10 455 120 Destroy 0b10 Robot/C 360 | . 300 60 Destroy 0b10 Robot/NC 40 | 10 30 . Destroy Leader 76 | . 76 . Disable Machine 15 | . 15 . Destroy Structure 34 | . 34 . Lose Combat Pursuer 60 | . . 60 Influence Decreases 475 | 10 455 10 Time Decay 370 | 10 360 . Lost Part 40 | . 30 10 Purge Threat 65 | . 65 . Squads Dispatched 4 | . 4 . Investigation 3 | . 3 . Extermination . | . . . Reinforcement 1 | . 1 . Assault . | . . . Garrison . | . . . Intercept . | . . . Searches Triggered . | . . . Construction Impeded . | . . . Haulers Reinforced . | . . . Active Scanning Responses . | . . . Cargo Convoy Interrupts . | . . . Stealth | -11 -10 -10 --------- Run | Yrd Mat Sub Distress Signals 2 | . 2 . Communications Jammed . | . . . Distress Signals . | . . . Times Spotted 38 | . 23 15 Peak Tracking Total 6 | . 3 6 Tactical Retreats 1 | . . 1 Traps | -11 -10 -10 ------- Run | Yrd Mat Sub Traps Triggered 3 | . 3 . Indirectly . | . . . Trap Hack Attempts . | . . . Triggered . | . . . Disarmed . | . . . Reprogrammed . | . . . Reused . | . . . Traps Extracted . | . . . Installed . | . . . Triggered . | . . . Machines | -11 -10 -10 ---------- Run | Yrd Mat Sub Machines Disabled 2 | . 1 1 Max in Single Turn 1 | . 1 1 Machines Repaired . | . . . Machines Dismantled . | . . . Machines Sabotaged . | . . . Overloaded Fab Kills . | . . . Hacking | -11 -10 -10 --------- Run | Yrd Mat Sub Machines Accessed 8 | . 8 . Terminals 7 | . 7 . Fabricators . | . . . Repair Stations . | . . . Recycling Units 1 | . 1 . Scanalyzers . | . . . Garrison Access . | . . . Total Hacks 21 | . 21 . Successful 5 | . 5 . Failed 16 | . 16 . Catastrophic 6 | . 6 . Database Lockouts . | . . . Manual 10 | . 10 . Terminals 19 | . 19 . Fabricators . | . . . Repair Stations . | . . . Recycling Units 2 | . 2 . Scanalyzers . | . . . Garrison Access . | . . . Terminal Hacks 3 | . 3 . Alert Level 1 | . 1 . Unreport Threat 1 | . 1 . Zone Layout 1 | . 1 . Fabricator Hacks . | . . . Repair Station Hacks . | . . . Recycling Unit Hacks 2 | . 2 . Report Inventory 1 | . 1 . Retrieve Matter 1 | . 1 . Scanalyzer . | . . . Garrison Access Hacks . | . . . Unauthorized Hacks . | . . . Terminals . | . . . Fabricators . | . . . Repair Stations . | . . . Recycling Units . | . . . Scanalyzers . | . . . Garrison Access . | . . . Data Cores Recovered 1 | . 1 . Used . | . . . Hacking Detections 8 | . 8 . Full Trace Events 2 | . 2 . Feedback Events 1 | . 1 . Corruption 1 | . 1 . Feedback Blocked . | . . . Robot Schematics Acquired . | . . . Robots Built . | . . . Authchips . | . . . Time . | . . . Total Robot Build Rating . | . . . Part Schematics Acquired . | . . . Parts Built . | . . . Authchips . | . . . Time . | . . . Total Part Build Rating . | . . . Part Studies Acquired . | . . . Parts Repaired . | . . . Time . | . . . Parts Recycled . | . . . Recycled Matter . | . . . Retrieved Matter . | . . . Retrieved Components . | . . . Parts Scanalyzed . | . . . Part Schematics Acquired . | . . . Parts Damaged . | . . . Bothacking | -11 -10 -10 ------------ Run | Yrd Mat Sub Used RIF Installer . | . . . Robots Hacked . | . . . Non-combat . | . . . Combat . | . . . Robot Hacks Applied . | . . . Relay Couplers Released . | . . . Fabnet Peak Effective % . | . . . Robots Rewired . | . . . Allies Hacked . | . . . Hacks Repelled . | . . . Allies | -11 -10 -10 -------- Run | Yrd Mat Sub Total Allies . | . . . Largest Group . | . . . Highest-Rated Group . | . . . Highest-Rated Ally . | . . . Total Orders . | . . . Ally Attacks . | . . . Total Damage . | . . . Kills . | . . . Allies Corrupted . | . . . Allies Melted . | . . . X0-1V1 Amusement Gains 9 | . 9 . Good Acts 2 | . . 2 Bad Acts 2 | . . 2 Intel | -11 -10 -10 ------- Run | Yrd Mat Sub Active Infowar (turns) 1452 | 42 1410 . Seismic 1452 | 42 1410 . Robot Analysis Total . | . . . Derelict Logs Recovered . | . . . Drone Launches . | . . . Drone Recoveries . | . . . Exploration | -11 -10 -10 ------------- Run | Yrd Mat Sub Turns Passed 1883 | 116 1430 337 Spaces Moved 1277 | 62 996 219 Core 12 | 11 1 . Treads 65 | . 4 61 Legs 1200 | 51 991 158 Wheels . | . . . Hover . | . . . Flight . | . . . Fastest Speed 50 | 50 120 120 Average Speed 122 | 119 120 131 Slowest Speed 250 | 250 200 160 Overloaded Moves . | . . . Propulsion Burnouts . | . . . Robots Hopped . | . . . Potential Cave-ins . | . . . Cave-ins Triggered . | . . . Exploration Rate (%) 41 | 4 99 20 Regions Visited 2 Branch Regions 1 Pre-discovered Areas . | . . . Known Exits Taken . | . . . Unknown Exits Taken 2 | 1 1 . Scrap Searched . | . . . Spaces Dug . | . . . Terrain Destroyed 38 | . 29 9 Melee . | . . . Projectile . | . . . AOE 38 | . 29 9 Terrain Rammed . | . . . Walls Destroyed . | . . . Machines Disabled . | . . . Actions | -11 -10 -10 --------- Run | Yrd Mat Sub Total 1445 | 90 1113 242 Wait 25 | 13 12 . Move 1275 | 61 995 219 Hop . | . . . Pick Up 18 | 4 12 2 Fast Attach 17 | 7 10 . Attach 5 | . 3 2 Detach 1 | . 1 . Swap 9 | . 7 2 Drop 11 | . 10 1 Fire 82 | 5 61 16 Melee . | . . . Ram . | . . . Kick 2 | . 2 . Crush . | . . . Escape Stasis . | . . . Rewire . | . . . Trap . | . . . Miscellaneous . | . . . Route ------- -11/Scrapyard -10/Materials (discovered 6 exits: [*Mat x3] / [*Min x2] / [*Sub]) -10/Subcaves (discovered 1 exit: [*Rec]) History --------- Turn | Location | Event 5 | -11/Scrapyard | Discovered new exit (range 14) 117 | -11/Scrapyard | Entered Materials 281 | -10/Materials | Discovered new exit (range 7) 319 | -10/Materials | Build established: Mutant 460 | -10/Materials | Discovered new exit (range 6) 676 | -10/Materials | Discovered new exit (range 16) 719 | -10/Materials | Discovered new exit (range 14) 945 | -10/Materials | Discovered new exit (range 10) 978 | -10/Materials | Build established: Scavenger-Mutant 1044 | -10/Materials | Lost 3 parts (2n1u) 1481 | -10/Materials | Discovered new exit (range 13) 1531 | -10/Materials | Prayed at D.C.S.S. Altar Unit 1547 | -10/Materials | Entered Subcaves 1548 | -10/Subcaves | Approached by a straggling Scientist 1559 | -10/Subcaves | A swath of the cavern ceiling suddenly collapsed 1765 | -10/Subcaves | Core integrity fell below 50% 1880 | -10/Subcaves | Discovered new exit (range 11) 1881 | -10/Subcaves | Ambushed by Subdweller buried in earth 1881 | -10/Subcaves | Ambushed by Subdweller buried in earth 1882 | -10/Subcaves | Core integrity fell below 20% 1882 | -10/Subcaves | Ambushed by Subdweller buried in earth 1884 | -10/Subcaves | Destroyed by ZX-SV6(R) with Subdweller Shrapnel Launcher Last Messages --------------- 01877_ 27XYEZ BLP% F>TZJD= M7:AT%J 01877_ Destroyed Flight Unit. 01877_ S-10 Pest destroyed. 01880_ EXIT=FOUND 01880_ Machine disabled. 01881_ X0-1V1: "Fire in the hole!" 01881_ Machine disabled. 01881_ Autobeam Turret destroyed. 01881_ S-10 Pest destroyed. 01881_ Machine disabled. [Achievement: Do Not Disturb] 01881_ U1-KKF(c) destroyed. 01881_ Lgt. Nuclear Core destroyed. 01882_ ZX-SV6(R): "ARGHSUB!" 01882_ NO-98X(R): "NOSTUCKSUB!" 01882_ 3M-R8Q(R): "ARGHSUB!" 01882_ 2F-ZXQ(R): "ARGHSUB!" 01882_ The unstable cave ceiling collapses. 01883_ 3E-C8J(R): "ARGHSUB!" 01884_ X0-1V1 howls with laughter! Map ----- +----------------------------------------------------+ | ???????????????????????## #???????????????????? | | ????????????????????????# #???????????????????? | | ????????????##?????###??##*= #???????????????????? | | ???? # # ##??# ##??# #???????????????????? | | ???? ## !##?#& #???????????????????? | | ???????# %###%& #?????????##????????? | | ?????????# ##### =!! =& ##???????? ##???????? | | ?????????????????## #???????? #???????? | | ??????????????????## [ #########??? ????????? | | ???????????????????## ## ## #??? ##???????? | | ????????????????????#### #### ##??????? | | ???????????????????????# ##?????? | | ???????????????????????## # # ## #?????? | | ????????????????????????## ####### #?????? | | ?????????????????????### # #????## #?????? | | ?????????????????????# ##?????# #?????? | | ?????????????????????# #???#### ####?????? | | ?????????????????????## ####???# ##????????? | | ????????????????????## ####????# ##?????????? | | ????????????????????# ;#????# ##??????????? | | ??????????????????###; #????# #???????????? | | ??????????????????# ; ###### #???????????? | | ?????????????????## # ## #?????? | | ???????????????### R = #?????? | | ???????????????# % # #?????? | | ???????????????# @ ## # #?????? | | ???????????????# #?## #?????? | | ??????????????# R [ #?? ????? | | ??????????????# #??# ??? | | ??????????????# #??### ??? | | ??????????????# ##?????# ??? | | ??????????????# t ??????# #???? | | ??????????????# ?????? #???? | | ??????????????# R ?????? ????? | | ??????????????# < ???????????? | | ??????????????## R R ????????????? | | ???????????????# ## ????????????? | | ????????????????## #???????????????? | | ??????????????????### ### #????????????????? | | ?????????????????????# ####??????????????????????? | | ?????????????????????????????????????????????????? | | ?????????????????????????????????????????????????? | | ?????????????????????????????????????????????????? | | ?????????????????????????????????????????????????? | | ?????????????????????????????????????????????????? | | ?????????????????????????????????????????????????? | | ?????????????????????????????????????????????????? | | ?????????????????????????????????????????????????? | | ?????????????????????????????????????????????????? | | ?????????????????????????????????????????????????? | +----------------------------------------------------+ Best States ------------- Heat Dissipation 25 Energy Generation 14 Energy Capacity 250 Matter Stores 300 Matter Capacity 300 Sight Range 16 Terrain Scan Density 10 Evasion (%) 55 Recoil Reduction 2 Item Schematics ----------------- None Robot Schematics ------------------ None Fabricated ------------ Nothing Repaired ---------- Nothing Studied --------- None Alien Tech Used ----------------- None Achievements -------------- Chaos Is Inevitable Do Not Disturb Challenges ------------ None Game ------ Seed OpticalMissilePick Manual? 0 Play Time 00:18:51 Cumulative 37.7 hours Start 2026.07.29 @ 22:16:59 End 2026.07.29 @ 22:34:44 Sessions 1 Manual Loads 0 Difficulty Rogue Special Mode None Game No. 53 Rogue 30 Adventurer 18 Explorer 5 Win Type - Total 0 Types 0/0/0/0/0/0/0/0/0/0 Lore% 30 Gallery% 40 Achievement% 29 Wizard Run 0 Options --------- Layout 0 ASCII 0 Keyboard 0 Movement Numpad Keybinds 0 Fullscreen 1 Font 18/X11 Map View 76x50 Zoom Use 8% Tactical HUD 1 Map Filters NONE Filters NONE Steam 1 RUN: d0f03037-ff54-4161-98cb-69cd462a8534